fUST/lending_fUST_20250813
["ID","MTS","AMOUNT","RATE_DAILY","PERIOD"]
[378805845,1755027163070,567.25796512,0.00029093,60]
[378805846,1755027163711,460.0,0.00029093,60]
[378805847,1755027164205,460.0,0.00029093,60]
[378805848,1755027164973,460.0,0.00029093,60]
[378805849,1755027165224,460.0,0.00029093,60]
[378805850,1755027166519,460.0,0.00029093,60]
[378805851,1755027167394,460.0,0.00029093,60]
[378805852,1755027167614,460.0,0.00029093,60]
[378805853,1755027167726,460.0,0.00029093,60]
[378805854,1755027167861,460.0,0.00029093,60]
[378805855,1755027167946,235.41,0.00029093,60]
[378805856,1755027168103,493.81533617,0.00029093,60]
[378805857,1755027169413,460.0,0.00029093,60]
[378805858,1755027169939,460.0,0.00029093,60]
[378805859,1755027170181,237.14,0.00029093,60]
[378805860,1755027171114,460.0,0.00029093,60]
[378805861,1755027171595,460.0,0.00029093,60]
[378805862,1755027172696,460.0,0.00029093,60]
[378805863,1755027175587,460.0,0.00029093,60]
[378805864,1755027175822,460.0,0.00029093,60]
[378805865,1755027176089,460.0,0.00029093,60]
[378805866,1755027176364,460.0,0.00029093,60]
[378805867,1755027179226,460.0,0.00029093,60]
[378805868,1755027179781,460.0,0.00029099,60]
[378805869,1755027179829,479.96,0.00029099,60]
[378805870,1755027181219,543.53,0.00029099,60]
[378805871,1755027183360,460.0,0.00029099,60]
[378805872,1755027187347,460.0,0.00029099,60]
[378805873,1755027191609,256.54707555,0.00029099,60]
[378805874,1755027196845,460.0,0.00029099,60]
[378805875,1755027196990,460.0,0.00029099,60]
[378805876,1755027197876,460.0,0.00029099,60]
[378805877,1755027198052,460.0,0.00029099,60]
[378805878,1755027198818,460.0,0.00029099,60]
[378805879,1755027202629,460.0,0.00029099,60]
[378805880,1755027206052,504.73,0.00029099,60]
[378805881,1755027207360,460.0,0.00029099,60]
[378805882,1755027207856,480.7435711,0.00029099,60]
[378805883,1755027208508,523.0826041,0.00029099,60]
[378805884,1755027210956,460.0,0.00029099,60]
[378805885,1755027211193,471.51851259,0.00029099,60]
[378805886,1755027213160,460.0,0.00029099,60]
[378805887,1755027213282,460.0,0.00029099,60]
[378805888,1755027213411,557.51,0.00029099,60]
[378805889,1755027214209,460.0,0.00029099,60]
[378805890,1755027219210,460.0,0.00029099,60]
[378805891,1755027219777,460.0,0.00029099,60]
[378805892,1755027220009,460.0,0.00029099,60]
[378805893,1755027220171,481.24,0.00029099,60]
[378805894,1755027223012,460.0,0.00029099,60]
[378805895,1755027224515,460.0,0.00029099,60]
[378805896,1755027224762,460.0,0.00029099,60]
[378805897,1755027225055,233.7,0.00029099,60]
[378805898,1755027229067,460.0,0.00029099,60]
[378805899,1755027232282,460.0,0.00029099,60]
[378805900,1755027232650,460.0,0.00029099,60]
[378805901,1755027233013,460.0,0.00029099,60]
[378805902,1755027234863,460.0,0.00029099,60]
[378805903,1755027236046,460.0,0.00029099,60]
[378805904,1755027238443,460.0,0.00029099,60]
[378805905,1755027240358,460.0,0.00029099,60]
[378805906,1755027241455,460.0,0.00029099,60]
[378805907,1755027243792,460.0,0.00029099,60]
[378805908,1755027245753,460.0,0.00029099,60]
[378805909,1755027246027,309.21,0.00029099,60]
[378805910,1755027248921,460.0,0.00029099,60]
[378805911,1755027250267,460.0,0.00029099,60]
[378805912,1755027251986,498.0349588,0.00029099,60]
[378805913,1755027252704,460.0,0.00029099,60]
[378805914,1755027252964,460.0,0.00029099,60]
[378805915,1755027254005,460.0,0.00029099,60]
[378805916,1755027254276,460.0,0.00029099,60]
[378805917,1755027255321,407.37142774,0.00029099,60]
[378805918,1755027274146,460.0,0.00029099,60]
[378805919,1755027274396,578.00232696,0.00029099,60]
[378805920,1755027276508,460.0,0.00029099,60]
[378805921,1755027278348,460.0,0.00029099,60]
[378805922,1755027280962,460.0,0.00029099,60]
[378805923,1755027281218,460.0,0.00029099,60]
[378805924,1755027281455,460.0,0.00029099,60]
[378805925,1755027283359,460.0,0.00029099,60]
[378805926,1755027283929,460.0,0.00029099,60]
[378805927,1755027292534,460.0,0.00029099,60]
[378805928,1755027292895,460.0,0.00029099,60]
[378805929,1755027293036,460.0,0.00029099,60]
[378805930,1755027293688,460.0,0.00029099,60]
[378805931,1755027294325,483.84,0.00029099,60]
[378805932,1755027295821,460.0,0.00029099,60]
[378805933,1755027299891,460.0,0.00029099,60]
[378805934,1755027302798,460.0,0.00029099,60]
[378805935,1755027303139,444.24391484,0.00029099,60]
[378805936,1755027305309,460.0,0.00029099,60]
[378805937,1755027306705,460.0,0.00029099,60]
[378805938,1755027307272,460.0,0.00029099,60]
[378805939,1755027307320,460.0,0.00029099,60]
[378805940,1755027307544,460.0,0.00029099,60]
[378805941,1755027307592,460.0,0.00029099,60]
[378805942,1755027307878,292.53,0.00029099,60]
[378805943,1755027308599,460.0,0.00029099,60]
[378805944,1755027309413,460.0,0.00029099,60]
[378805945,1755027313880,460.0,0.00029099,60]
[378805946,1755027315773,460.0,0.00029099,60]
[378805947,1755027322686,460.0,0.00029099,60]
[378805948,1755027322941,460.0,0.00029099,60]
[378805949,1755027323625,460.0,0.00029099,60]
[378805950,1755027324762,460.0,0.00029099,60]
[378805951,1755027329224,460.0,0.00029099,60]
[378805952,1755027333224,460.0,0.00029099,60]
[378805953,1755027333299,460.0,0.00029099,60]
[378805954,1755027334434,460.0,0.00029099,60]
[378805956,1755027350418,460.0,0.00029099,60]
[378805957,1755027350728,460.0,0.00029099,60]
[378805958,1755027350869,460.0,0.00029099,60]
[378805959,1755027352969,460.0,0.00029099,60]
[378805960,1755027353087,460.0,0.00029099,60]
[378805961,1755027353224,460.0,0.00029099,60]
[378805962,1755027353448,600.97,0.00029099,60]
[378805963,1755027355454,567.86,0.00029099,60]
[378805964,1755027358604,460.0,0.00029099,60]
[378805965,1755027359091,497.28876133,0.00029099,60]
[378805966,1755027366535,460.0,0.00029099,60]
[378805967,1755027366938,460.0,0.00029099,60]
[378805968,1755027367145,460.0,0.00029099,60]
[378805969,1755027367204,460.0,0.00029099,60]
[378805970,1755027367410,207.57,0.00029099,60]
[378805971,1755027369327,460.0,0.00029099,60]
[378805972,1755027369580,288.51,0.00029099,60]
[378805973,1755027370534,460.0,0.00029099,60]
[378805974,1755027374774,460.0,0.00029099,60]
[378805975,1755027383182,581.21354039,0.00029099,60]
[378805976,1755027386511,460.0,0.00029099,60]
[378805977,1755027390203,460.0,0.00029099,60]
[378805978,1755027400906,162.63668174,0.00029099,60]
[378805979,1755027406361,460.0,0.00029099,60]
[378805980,1755027408174,460.0,0.00029099,60]
[378805981,1755027410188,460.0,0.00029099,60]
[378805982,1755027419338,460.0,0.00029099,60]
[378805983,1755027426109,460.0,0.00029099,60]
[378805984,1755027442853,548.95916616,0.00029099,60]
[378805985,1755027444945,460.0,0.00029099,60]
[378805986,1755027445391,460.0,0.00029099,60]
[378805987,1755027447974,460.0,0.00029099,60]
[378805988,1755027448215,167.31,0.00029099,60]
[378805989,1755027460963,460.0,0.00029099,60]
[378805990,1755027463210,460.0,0.00029099,60]
[378805991,1755027468600,468.86349631,0.00029099,60]
[378805992,1755027472408,460.0,0.00029099,60]
[378805993,1755027473244,460.0,0.00029099,60]
[378805994,1755027473512,598.46,0.00029099,60]
[378805995,1755027477927,460.0,0.00029099,60]
[378805996,1755027486628,460.0,0.000291,60]
[378805997,1755027487310,319.55002603,0.000291,60]
[378805998,1755027496258,200.15587209,0.000291,60]
[378805999,1755027498504,460.0,0.000291,60]
[378806000,1755027498754,460.0,0.000291,60]
[378806001,1755027504493,460.0,0.000291,60]
[378806002,1755027508144,354.71335373,0.000291,60]
[378806003,1755027508400,460.0,0.000291,60]
[378806004,1755027511520,460.0,0.000291,60]
[378806005,1755027511790,460.0,0.000291,60]
[378806006,1755027512049,323.36,0.000291,60]
[378806007,1755027520549,460.0,0.000291,60]
[378806008,1755027522454,460.0,0.000291,60]
[378806009,1755027522695,460.0,0.000291,60]
[378806010,1755027522949,460.0,0.000291,60]
[378806011,1755027522994,460.0,0.000291,60]
[378806012,1755027529296,460.0,0.000291,60]
[378806013,1755027534174,460.0,0.000291,60]
[378806014,1755027534424,161.58167914,0.000291,60]
[378806015,1755027537751,460.0,0.000291,60]
[378806016,1755027537874,460.0,0.000291,60]
[378806017,1755027542788,460.0,0.000291,60]
[378806018,1755027543053,460.0,0.000291,60]
[378806019,1755027543373,460.0,0.000291,60]
[378806020,1755027543628,175.71,0.000291,60]
[378806021,1755027544452,460.0,0.000291,60]
[378806022,1755027547006,460.0,0.000291,60]
[378806023,1755027560109,460.0,0.000291,60]
[378806024,1755027564331,460.0,0.000291,60]
[378806025,1755027564587,462.91364482,0.000291,60]
[378806026,1755027566037,460.0,0.000291,60]
[378806027,1755027567058,460.0,0.000291,60]
[378806028,1755027568028,465.67917143,0.000291,60]
[378806029,1755027577038,460.0,0.000291,60]
[378806030,1755027586770,561.8572985,0.000291,60]
[378806031,1755027587050,460.0,0.000291,60]
[378806032,1755027587305,460.0,0.000291,60]
[378806033,1755027589029,522.93,0.000291,60]
[378806034,1755027595321,191.68958568,0.000291,60]
[378806035,1755027610587,460.0,0.000291,60]
[378806036,1755027618340,460.0,0.000291,60]
[378806037,1755027618588,371.94,0.000291,60]
[378806038,1755027640119,460.0,0.000291,60]
[378806039,1755027644438,460.0,0.000291,60]
[378806040,1755027644681,156.38,0.000291,60]
[378806041,1755027648196,460.0,0.000291,60]
[378806042,1755027648492,220.65,0.000291,60]
[378806043,1755027658775,460.0,0.000291,60]
[378806044,1755027659058,460.0,0.000291,60]
[378806045,1755027659300,460.0,0.000291,60]
[378806046,1755027666624,603.71,0.000291,60]
[378806047,1755027691018,480.32,0.000291,60]
[378806049,1755027857588,246.502697,0.00013699,2]
[378806051,1755027925507,462.57768948,0.00029105,60]
[378806052,1755027927460,461.89986859,0.00029105,60]
[378806102,1755028232366,-261.3689068,0.00018008,2]
[378806105,1755028232376,-231.01231729,0.00018129,2]
[378806311,1755028240572,-1966.00541221,0.00018129,2]
[378806312,1755028240583,-270.16039963,0.0001819,2]
[378806332,1755028266318,460.0,0.00029107,60]
[378806333,1755028272980,460.0,0.00029107,60]
[378806334,1755028275796,460.0,0.00029107,60]
[378806335,1755028279290,460.0,0.00029107,60]
[378806336,1755028290719,460.0,0.00029107,60]
[378806337,1755028292952,460.0,0.00029107,60]
[378806338,1755028296480,460.0,0.00029107,60]
[378806339,1755028298378,460.0,0.00029107,60]
[378806340,1755028306503,460.0,0.00029107,60]
[378806341,1755028310482,460.0,0.00029107,60]
[378806342,1755028312269,460.0,0.00029107,60]
[378806343,1755028315099,460.0,0.00029107,60]
[378806344,1755028325152,460.0,0.00029107,60]
[378806345,1755028327589,460.0,0.00029107,60]
[378806346,1755028334347,460.0,0.00029107,60]
[378806347,1755028347775,460.0,0.00029107,60]
[378806348,1755028355475,460.0,0.00029107,60]
[378806349,1755028359361,460.0,0.00029107,60]
[378806350,1755028362211,460.0,0.00029107,60]
[378806351,1755028365795,460.0,0.00029107,60]
[378806352,1755028369588,460.0,0.00029107,60]
[378806353,1755028372360,460.0,0.00029107,60]
[378806354,1755028374258,460.0,0.00029107,60]
[378806355,1755028378008,460.0,0.00029107,60]
[378806356,1755028388479,460.0,0.00029109,60]
[378806357,1755028397580,460.0,0.00029109,60]
[378806358,1755028404727,1136.52,0.00029109,60]
[378806359,1755028404798,460.0,0.00029109,60]
[378806360,1755028405019,1136.52,0.00029109,60]
[378806361,1755028405298,1136.52,0.00029109,60]
[378806362,1755028405602,1136.52,0.00029109,60]
[378806363,1755028405852,1136.52,0.00029109,60]
[378806364,1755028405949,460.0,0.00029109,60]
[378806365,1755028406189,460.0,0.00029109,60]
[378806366,1755028406234,1136.52,0.00029109,60]
[378806367,1755028406515,1136.52,0.00029109,60]
[378806368,1755028406733,460.0,0.00029109,60]
[378806369,1755028406780,460.0,0.00029109,60]
[378806370,1755028406827,1136.52,0.00029109,60]
[378806371,1755028407056,1136.52,0.00029109,60]
[378806372,1755028407320,1136.52,0.00029109,60]
[378806373,1755028407851,460.0,0.00029109,60]
[378806374,1755028407916,1136.52,0.00029109,60]
[378806375,1755028408170,1136.52,0.00029109,60]
[378806376,1755028408440,1136.52,0.00029109,60]
[378806377,1755028408687,1136.52,0.00029109,60]
[378806378,1755028408963,1136.52,0.00029109,60]
[378806379,1755028409199,1136.52,0.00029109,60]
[378806380,1755028409447,1136.52,0.00029109,60]
[378806381,1755028409691,1136.52,0.00029109,60]
[378806382,1755028409734,460.0,0.00029109,60]
[378806383,1755028409945,1136.52,0.00029109,60]
[378806384,1755028410199,1136.52,0.00029109,60]
[378806385,1755028410454,1136.52,0.00029109,60]
[378806386,1755028410718,1136.52,0.00029109,60]
[378806387,1755028410971,1136.52,0.00029109,60]
[378806388,1755028411251,1136.6377489,0.00029109,60]
[378806389,1755028417500,418.8971703,0.00029109,60]
[378806390,1755028420449,460.0,0.00029109,60]
[378806391,1755028420709,381.24943267,0.00029109,60]
[378806392,1755028422031,230722.93995581,0.00029109,60]
[378806398,1755028770871,234.177562,0.00013699,2]
[378806405,1755028988922,-300.0,0.00017839,2]
[378806406,1755028989072,-1313.66436582,0.0001784,2]
[378806407,1755028989202,-5000.0,0.0001784,2]
[378806408,1755028989439,-5000.0,0.0001784,2]
[378806409,1755028989643,-991.75796823,0.0001784,2]
[378806499,1755029432523,-300.0,0.00018039,2]
[378806501,1755029432533,-222.46673089,0.00018039,2]
[378806506,1755029432573,-77.53326911,0.00018039,2]
[378806508,1755029432582,-300.0,0.00018039,2]
[378806510,1755029432592,-300.0,0.00018039,2]
[378806512,1755029432601,-300.0,0.00018039,2]
[378806514,1755029432611,-1200.0,0.00018039,2]
[378806516,1755029432620,-24900.0,0.0001804,2]
[378806519,1755029432630,-183.079199,0.00018202,2]
[378806523,1755029432639,-200.0,0.000184,2]
[378806526,1755029432648,-200.0,0.000184,2]
[378806529,1755029432658,-200.0,0.000184,2]
[378806532,1755029432668,-200.0,0.000184,2]
[378806535,1755029432679,-250.0,0.00018592,2]
[378806538,1755029432690,-302.96970909,0.000189,2]
[378806541,1755029432699,-303.00000303,0.000189,2]
[378806543,1755029432709,-637.56422657,0.00019078,2]
[378806545,1755029432718,-302.96970909,0.00019089,2]
[378806547,1755029432728,-303.00000303,0.00019089,2]
[378806548,1755029432738,-5000.0,0.00019178,2]
[378806549,1755029432747,-462.7513774,0.00019178,2]
[378806550,1755029432756,-666.0,0.00019178,2]
[378806551,1755029432766,-302.96970909,0.00019278,2]
[378806552,1755029432775,-303.00000303,0.00019278,2]
[378806553,1755029432784,-151.0,0.00019318,2]
[378806554,1755029432794,-17842.522448,0.00019318,2]
[378806555,1755029432803,-419.62,0.00019319,3]
[378806556,1755029432812,-500.0,0.00019328,2]
[378806557,1755029432824,-191.98236594,0.00019328,2]
[378806558,1755029432833,-368.76605092,0.00019328,2]
[378806559,1755029432843,-500.0,0.00019328,2]
[378806560,1755029432852,-500.0,0.00019328,2]
[378806561,1755029432861,-500.0,0.00019328,2]
[378806562,1755029432870,-500.0,0.00019328,2]
[378806563,1755029432879,-500.0,0.00019328,2]
[378806565,1755029432888,-248.80747384,0.00019328,2]
[378806567,1755029432898,-500.0,0.00019328,2]
[378806569,1755029432907,-500.0,0.00019328,2]
[378806571,1755029432916,-336.76610337,0.00019328,2]
[378806572,1755029432925,-495.54895,0.00019328,2]
[378806573,1755029432934,-500.0,0.00019328,2]
[378806574,1755029432943,-500.0,0.00019328,2]
[378806575,1755029432953,-255.2192787,0.00019328,2]
[378806576,1755029432962,-500.0,0.00019328,2]
[378806577,1755029432971,-500.0,0.00019328,2]
[378806578,1755029432980,-100000.0,0.00019329,2]
[378806579,1755029432989,-1163.23764824,0.00019367,2]
[378806580,1755029432998,-302.96970909,0.00019467,2]
[378806581,1755029433007,-303.00000303,0.00019467,2]
[378806582,1755029433017,-500.0,0.00019656,2]
[378806583,1755029433026,-302.96970909,0.00019656,2]
[378806584,1755029433036,-303.00000303,0.00019656,2]
[378806585,1755029433216,-420.0,0.00019682,2]
[378806586,1755029433234,-302.0,0.00019682,2]
[378806587,1755029433244,-300.0,0.00019682,2]
[378806588,1755029433254,-214.0,0.00019682,2]
[378806589,1755029433264,-20254.99684151,0.000197,2]
[378806590,1755029433277,-9132.83780874,0.00019712,2]
[378806591,1755029433287,-216.70963917,0.00019714,2]
[378806592,1755029433298,-160.0,0.00019721,2]
[378806593,1755029433308,-160.0,0.00019721,2]
[378806594,1755029433318,-160.0,0.00019721,2]
[378806595,1755029433328,-160.0,0.00019721,2]
[378806596,1755029433337,-500.0,0.00019773,2]
[378806597,1755029433347,-500.0,0.00019773,2]
[378806598,1755029433356,-500.0,0.00019773,2]
[378806599,1755029433366,-500.0,0.00019773,2]
[378806600,1755029433376,-500.0,0.00019773,2]
[378806601,1755029433386,-500.0,0.00019773,2]
[378806602,1755029433395,-500.0,0.00019773,2]
[378806603,1755029433405,-500.0,0.00019773,2]
[378806604,1755029433414,-500.0,0.00019773,2]
[378806605,1755029433424,-500.0,0.00019773,2]
[378806606,1755029433434,-500.0,0.00019773,2]
[378806607,1755029433443,-500.0,0.00019773,2]
[378806608,1755029433453,-500.0,0.00019773,2]
[378806609,1755029433463,-500.0,0.00019773,2]
[378806610,1755029433473,-500.0,0.00019773,2]
[378806611,1755029433483,-500.0,0.00019773,2]
[378806612,1755029433493,-500.0,0.00019773,2]
[378806613,1755029433503,-500.0,0.00019773,2]
[378806614,1755029433513,-500.0,0.00019773,2]
[378806615,1755029433523,-500.0,0.00019773,2]
[378806616,1755029433533,-500.0,0.00019773,2]
[378806617,1755029433543,-500.0,0.00019773,2]
[378806618,1755029433552,-500.0,0.00019773,2]
[378806619,1755029433562,-500.0,0.00019773,2]
[378806620,1755029433573,-500.0,0.00019773,2]
[378806621,1755029433583,-500.0,0.00019773,2]
[378806622,1755029433593,-500.0,0.00019773,2]
[378806623,1755029433604,-225.87216871,0.00019773,2]
[378806624,1755029433614,-451.66015152,0.00019773,2]
[378806625,1755029433623,-500.0,0.00019773,2]
[378806626,1755029433633,-500.0,0.00019773,2]
[378806627,1755029433642,-209.01178275,0.00019773,2]
[378806628,1755029433650,-500.0,0.00019773,2]
[378806629,1755029433659,-500.0,0.00019773,2]
[378806630,1755029433669,-505.1922163,0.00019773,2]
[378806631,1755029433678,-500.0,0.00019773,2]
[378806632,1755029433688,-500.0,0.00019773,2]
[378806633,1755029433698,-500.0,0.00019773,2]
[378806634,1755029433709,-500.0,0.00019773,2]
[378806635,1755029433719,-1200.0,0.00019779,2]
[378806636,1755029433729,-513.96776747,0.00019799,2]
[378806637,1755029433739,-271.44506784,0.00019799,2]
[378806638,1755029433748,-2562.72027593,0.000198,2]
[378806639,1755029433757,-334546.99891591,0.000198,2]
[378806640,1755029433766,-1100.0,0.00019812,2]
[378806641,1755029433776,-160.0,0.00019836,2]
[378806642,1755029433786,-454.45456363,0.00019845,4]
[378806643,1755029433796,-454.50000455,0.00019845,4]
[378806644,1755029433806,-1121.589409,0.00019863,2]
[378806645,1755029433817,-1163.23764824,0.00019869,2]
[378806646,1755029433827,-54715.53457202,0.000199,2]
[378806647,1755029433836,-500.0,0.0001993,2]
[378806648,1755029433846,-151.50000152,0.0002,2]
[378806649,1755029433852,-300.0,0.0002,2]
[378806650,1755029433861,-250.0,0.0002,10]
[378806651,1755029433871,-160.0,0.0002,3]
[378806652,1755029433881,-454.45456363,0.00020034,4]
[378806653,1755029433890,-454.50000455,0.00020034,4]
[378806654,1755029433900,-151.0,0.00020038,2]
[378806655,1755029433910,-250.0,0.000201,10]
[378806656,1755029433919,-150.0,0.00020113,2]
[378806657,1755029433930,-150.0,0.00020113,2]
[378806658,1755029433939,-150.0,0.00020113,2]
[378806659,1755029433949,-150.0,0.00020113,2]
[378806660,1755029433959,-150.0,0.00020113,2]
[378806661,1755029433967,-636.0,0.00020113,2]
[378806662,1755029433977,-971.0,0.00020113,2]
[378806663,1755029433986,-2151.0,0.00020113,2]
[378806664,1755029433995,-234.177562,0.00020187,2]
[378806665,1755029434005,-250.0,0.000202,10]
[378806666,1755029434014,-500.0,0.00020204,2]
[378806667,1755029434023,-200.0,0.00020209,15]
[378806668,1755029434033,-200.0,0.00020209,15]
[378806669,1755029434042,-200.0,0.00020209,15]
[378806670,1755029434051,-200.0,0.00020209,15]
[378806671,1755029434061,-320.0,0.00020209,15]
[378806672,1755029434071,-454.45456363,0.00020223,4]
[378806673,1755029434080,-454.50000455,0.00020223,4]
[378806674,1755029434089,-250.0,0.000203,10]
[378806675,1755029434098,-500.0,0.00020321,2]
[378806676,1755029434107,-500.0,0.00020321,2]
[378806677,1755029434116,-500.0,0.00020321,2]
[378806678,1755029434125,-500.0,0.00020321,2]
[378806679,1755029434135,-500.0,0.00020321,2]
[378806680,1755029434143,-1000.0,0.00020321,2]
[378806681,1755029434154,-572.28433155,0.00020321,2]
[378806682,1755029434165,-500.0,0.00020321,2]
[378806683,1755029434172,-1000.0,0.00020321,2]
[378806684,1755029434180,-575.04094587,0.00020321,2]
[378806685,1755029434187,-1000.0,0.00020321,2]
[378806686,1755029434195,-500.0,0.00020321,2]
[378806687,1755029434203,-500.0,0.00020321,2]
[378806688,1755029434210,-1000.0,0.00020321,2]
[378806689,1755029434217,-500.0,0.00020321,2]
[378806690,1755029434225,-741.79460553,0.00020321,2]
[378806691,1755029434234,-500.0,0.00020321,2]
[378806692,1755029434240,-500.0,0.00020321,2]
[378806693,1755029434247,-1001.09350321,0.00020321,2]
[378806694,1755029434254,-1000.0,0.00020321,2]
[378806695,1755029434261,-500.0,0.00020321,2]
[378806696,1755029434268,-500.0,0.00020321,2]
[378806697,1755029434275,-1000.0,0.00020321,2]
[378806698,1755029434285,-500.0,0.00020321,2]
[378806699,1755029434295,-348.69065731,0.00020321,2]
[378806700,1755029434304,-500.0,0.00020321,2]
[378806701,1755029434314,-1000.0,0.00020321,2]
[378806702,1755029434324,-500.0,0.00020321,2]
[378806703,1755029434334,-1000.0,0.00020321,2]
[378806704,1755029434343,-537.49624507,0.00020321,2]
[378806705,1755029434353,-12673.43806534,0.0002034,2]
[378806706,1755029434362,-151.0,0.00020361,2]
[378806707,1755029434372,-1163.23764824,0.0002037,2]
[378806708,1755029434382,-260.0,0.00020384,2]
[378806709,1755029434391,-151.0,0.000204,4]
[378806710,1755029434401,-250.0,0.000204,10]
[378806711,1755029434411,-454.45456363,0.00020412,4]
[378806712,1755029434421,-580.78329111,0.00020412,4]
[378806713,1755029434431,-250.0,0.000205,10]
[378806714,1755029434440,-637.5642265,0.00020501,2]
[378806715,1755029434450,-5000.0,0.00020542,2]
[378806716,1755029434459,-3929.09,0.00020547,2]
[378806717,1755029434468,-151.0,0.000206,4]
[378806718,1755029434478,-250.0,0.000206,10]
[378806719,1755029434487,-454.83323792,0.00020601,4]
[378806720,1755029434496,-151.0,0.00020685,2]
[378806721,1755029434506,-18502.69577858,0.00020687,2]
[378806722,1755029434516,-250.0,0.000207,10]
[378806723,1755029434525,-151.0,0.000208,3]
[378806724,1755029434534,-151.0,0.000208,3]
[378806725,1755029434544,-250.0,0.000208,10]
[378806726,1755029434553,-1500.0,0.00020868,2]
[378806727,1755029434562,-1500.0,0.00020868,2]
[378806728,1755029434573,-1500.0,0.00020868,2]
[378806729,1755029434583,-1500.0,0.00020868,2]
[378806730,1755029434593,-1400.24891133,0.00020868,2]
[378806731,1755029434602,-1163.23764824,0.00020872,2]
[378806732,1755029434611,-250.0,0.000209,10]
[378806733,1755029434621,-1100.0,0.00020908,2]
[378806734,1755029434630,-360.0,0.00020932,2]
[378806735,1755029434639,-1771.90876858,0.00021,2]
[378806736,1755029434649,-18523.0,0.00021,2]
[378806737,1755029434658,-250.0,0.00021,10]
[378806738,1755029434667,-151.821824,0.00021,2]
[378806739,1755029434677,-151.0,0.00021,2]
[378806740,1755029434687,-151.0,0.00021,2]
[378806741,1755029434696,-151.0,0.00021008,2]
[378806742,1755029434706,-151.0,0.000211,4]
[378806743,1755029434715,-151.0,0.000211,4]
[378806744,1755029434725,-250.0,0.000211,10]
[378806745,1755029434734,-151.0,0.00021157,2]
[378806746,1755029434744,-151.0,0.00021257,2]
[378806747,1755029434754,-162.65333618,0.0002126,2]
[378806748,1755029434764,-162.65333618,0.0002126,2]
[378806749,1755029434773,-162.65333619,0.0002126,2]
[378806750,1755029434783,-151.0,0.000213,4]
[378806751,1755029434792,-151.0,0.000213,3]
[378806752,1755029434801,-151.0,0.000213,2]
[378806753,1755029434810,-151.0,0.000213,2]
[378806754,1755029434820,-151.0,0.00021332,2]
[378806755,1755029434829,-1163.23764824,0.00021373,2]
[378806756,1755029434840,-12673.43806534,0.000214,3]